bitfinex/quotes_SOLUSD_20240729
["timestamp","ask_amount","ask_price","bid_price","bid_amount"]
[1722265781615,5.318,188.04,187.97,5.3199]
[1722265782015,6.082,188.06,187.97,13.2993]
[1722265782528,6.082,188.06,187.9,8.19323926]
[1722265782529,6.5662,188.04,187.9,8.19323926]
[1722265782825,6.5662,188.04,187.93,5.321]
[1722265782826,15.6281,188.01,187.93,5.321]
[1722265783005,15.6281,188.01,187.9,21.49803926]
[1722265783202,5.3196,187.99,187.9,53.75993926]
[1722265783402,15.6281,188.01,187.9,46.3597]
[1722265783631,45.0,188.0,187.9,46.3597]
[1722265783808,15.6281,188.01,187.93,13.3026]
[1722265784010,45.0,188.0,187.9,33.0549]
[1722265784324,45.0,188.0,187.93,5.3211]
[1722265784528,15.6281,188.01,187.93,5.3211]
[1722265784701,15.6281,188.01,187.92,13.3034]
[1722265784903,15.6281,188.01,187.94,5.3206]
[1722265785609,15.6281,188.01,187.92,13.3034]
[1722265785828,20.9469,188.01,187.92,18.6247]
[1722265786123,20.9469,188.01,187.93,5.321]
[1722265786306,15.6281,188.01,187.94,5.3208]
[1722265786703,20.9471,188.01,187.92,18.6246]
[1722265786925,5.3192,188.0,187.92,18.6246]
[1722265787129,5.3194,187.99,187.92,13.3034]
[1722265787316,15.6281,188.01,187.92,5.3214]
[1722265787515,45.0,188.0,187.9,5.3217]
[1722265787721,45.0,188.0,187.88,13.3059]
[1722265787924,0.34,187.99,187.86,6.1547]
[1722265788115,5.3206,187.95,187.86,5.3228]
[1722265788441,45.0,187.94,187.87,5.3226]
[1722265788633,50.3209,187.94,187.85,34.32638248]
[1722265789131,50.3209,187.94,187.85,29.00328248]
[1722265789307,45.0,187.94,187.85,29.00328248]
[1722265789636,45.0,187.94,187.87,5.3227]
[1722265789811,45.0,187.94,187.85,29.00328248]
[1722265790212,16.6201,187.93,187.85,32.2633]
[1722265790431,16.6201,187.93,187.85,26.94]
[1722265790608,16.6201,187.93,187.78,13.3127]
[1722265790609,45.17,187.92,187.78,13.3127]
[1722265790816,5.3235,187.85,187.77,32.2655]
[1722265791136,5.3233,187.85,187.77,26.94]
[1722265791339,20.17,187.91,187.77,40.2539]
[1722265791626,22.5651,187.89,187.78,5.3251]
[1722265791828,5.3232,187.86,187.78,5.3251]
[1722265792019,22.5651,187.89,187.82,5.3242]
[1722265792329,22.5651,187.89,187.83,5.3238]
[1722265792533,16.3171,187.89,187.83,13.3095]
[1722265792743,16.3171,187.89,187.86,5.3231]
[1722265793231,16.3171,187.89,187.84,5.3234]
[1722265793526,16.3171,187.89,187.83,45.5734]
[1722265793936,16.3171,187.89,187.84,5.3235]
[1722265794323,16.3171,187.89,187.85,5.3232]
[1722265795124,16.3171,187.89,187.86,13.3077]
[1722265795605,16.3171,187.89,187.86,18.6305]
[1722265796231,22.0338,187.93,187.87,5.3227]
[1722265796436,22.0338,187.93,187.86,13.3077]
[1722265796636,16.0282,187.93,187.89,13.3055]
[1722265796808,16.0282,187.93,187.9,5.3218]
[1722265797013,16.0282,187.93,187.91,5.3216]
[1722265797216,21.3426,187.97,187.91,5.3216]
[1722265797734,21.3426,187.97,187.9,5.3219]
[1722265797927,21.3426,187.97,187.91,5.3216]
[1722265798742,21.3426,187.97,187.92,5.3213]
[1722265798916,15.3403,187.97,187.92,18.6245]
[1722265800321,22.2988,188.02,187.92,13.3032]
[1722265800534,22.2988,188.02,187.95,13.3012]
[1722265800739,16.1855,188.02,187.95,18.6215]
[1722265800939,16.1855,188.02,187.95,18.6214]
[1722265801243,16.1855,188.02,187.95,13.3012]
[1722265801541,16.1855,188.02,187.95,18.6217]
[1722265801738,16.1855,188.02,187.95,13.3012]
[1722265802143,16.1855,188.02,187.92,26.94]
[1722265802324,16.1855,188.02,187.94,13.3019]
[1722265802736,16.1855,188.02,187.96,5.3202]
[1722265803127,16.1855,188.02,187.97,5.3198]
[1722265803341,16.1855,188.02,187.96,5.3202]
[1722265804024,16.1855,188.02,187.97,5.3198]
[1722265804321,16.1855,188.02,187.99,5.3193]
[1722265804527,0.7645,188.06,187.99,13.2983]
[1722265805219,6.082,188.06,187.98,5.3196]
[1722265805419,6.082,188.06,187.95,13.3007]
[1722265805420,0.7645,188.06,187.95,13.3007]
[1722265805619,43.6645,188.06,187.92,13.3034]
[1722265805819,15.2972,188.03,187.89,5.322]
[1722265806019,45.34,188.02,187.88,13.3058]
[1722265806226,5.3191,188.0,187.91,5.3214]
[1722265806437,45.0,187.99,187.91,5.3214]
[1722265806641,45.0,187.99,187.93,5.321]
[1722265806843,0.34,188.02,187.93,5.321]
[1722265807051,65.0,188.02,187.93,13.3026]
[1722265807750,81.0,188.02,187.88,13.3056]
[1722265807942,5.3204,187.96,187.88,13.3056]
[1722265808128,50.3205,187.95,187.88,13.3056]
[1722265808323,5.3211,187.94,187.85,18.6316]
[1722265808524,21.0896,187.93,187.85,18.6316]
[1722265808741,15.7685,187.93,187.85,13.3083]
[1722265809421,45.34,187.92,187.83,5.3238]
[1722265809642,45.34,187.92,187.81,46.8127]
[1722265810220,50.6616,187.92,187.83,5.3239]
[1722265810442,5.3217,187.91,187.83,5.3239]
[1722265810651,45.0,187.9,187.78,26.94]
[1722265810843,45.34,187.92,187.79,13.312]
[1722265810844,5.3227,187.88,187.79,13.312]
[1722265811157,5.4929,187.87,187.79,13.312]
[1722265811355,50.3231,187.86,187.79,13.312]
[1722265811561,50.3231,187.86,187.78,5.3253]
[1722265811729,5.3234,187.85,187.76,13.3148]
[1722265811936,15.5577,187.85,187.78,5.3253]
[1722265812433,20.8811,187.85,187.76,13.3148]
[1722265812834,15.5577,187.85,187.77,5.3254]
[1722265813028,15.5577,187.85,187.78,5.3251]
[1722265813233,15.5577,187.85,187.79,5.325]
[1722265814236,15.5577,187.85,187.8,13.3113]
[1722265814480,15.5577,187.85,187.81,5.3245]
[1722265814643,15.5577,187.85,187.8,18.636]
[1722265814846,15.5577,187.85,187.76,13.3143]
[1722265815660,50.3239,187.84,187.76,13.3143]
[1722265815838,45.0,187.84,187.77,5.3256]
[1722265816039,15.5577,187.85,187.78,13.3127]
[1722265816235,15.5577,187.85,187.78,18.638]
[1722265816560,15.5577,187.85,187.75,5.3262]
[1722265816561,5.3239,187.84,187.75,5.3262]
[1722265816734,5.3239,187.84,187.76,5.3257]
[1722265817064,15.5577,187.85,187.74,18.6419]
[1722265817358,45.0,187.84,187.74,13.3157]
[1722265817676,5.324,187.83,187.75,5.3259]
[1722265817951,45.0,187.82,187.74,18.6422]
[1722265818160,45.0,187.82,187.75,5.326]
[1722265818659,0.17,187.84,187.77,5.3255]
[1722265818869,65.0,187.84,187.78,5.3252]
[1722265819054,20.0,187.84,187.79,5.325]
[1722265819236,15.5577,187.85,187.73,13.3164]
[1722265819435,45.0,187.83,187.73,13.3164]
[1722265819731,45.17,187.84,187.76,13.3148]
[1722265820161,50.4938,187.84,187.76,18.6406]
[1722265821645,5.324,187.83,187.76,13.3148]
[1722265821863,45.17,187.82,187.72,13.317]
[1722265822364,45.0,187.82,187.76,5.3257]
[1722265822540,15.5577,187.85,187.75,13.3153]
[1722265823050,5.3238,187.84,187.75,18.6414]
[1722265823256,5.3237,187.84,187.76,5.3258]
[1722265823462,5.324,187.83,187.75,13.3153]
[1722265823666,5.324,187.83,187.75,18.6414]
[1722265823965,45.0,187.82,187.76,5.3258]
[1722265824270,45.0,187.83,187.76,5.3258]
[1722265824450,50.4937,187.84,187.76,5.3258]
[1722265824652,5.3244,187.82,187.75,13.3153]
[1722265824869,15.7136,187.79,187.69,2.08226908]
[1722265825079,15.5928,187.75,187.62,13.3241]
[1722265825237,15.5928,187.75,187.71,5.3273]
[1722265825565,67.1831,187.81,187.72,13.3175]
[1722265825776,67.1831,187.81,187.74,5.3264]
[1722265826279,5.3262,187.75,187.66,5.3285]
[1722265826564,13.3129,187.79,187.65,5.3289]
[1722265826741,65.0,187.78,187.61,41.8776]
[1722265826943,65.0,187.78,187.63,13.3237]
[1722265827167,16.3502,187.72,187.63,13.3237]
[1722265827368,45.0,187.71,187.63,13.3237]
[1722265827943,0.17,187.7,187.63,13.3237]
[1722265828468,51.4182,187.71,187.63,18.6532]
[1722265828977,0.34,187.7,187.63,13.3237]
[1722265829485,0.34,187.7,187.63,18.6532]
[1722265829847,0.34,187.7,187.61,5.33]
[1722265830046,0.34,187.7,187.64,5.3292]
[1722265830263,0.34,187.7,187.63,5.3296]
[1722265830447,0.34,187.7,187.62,13.3242]
[1722265830448,0.17,187.7,187.62,13.3242]
[1722265830645,51.4182,187.71,187.65,13.3223]
[1722265830876,6.4182,187.71,187.67,5.3284]
[1722265831050,16.3502,187.72,187.68,5.3281]
[1722265831464,16.3502,187.72,187.68,13.3201]
[1722265831651,15.7949,187.81,187.64,36.9889]
[1722265831856,15.7949,187.81,187.72,5.3268]
[1722265832355,15.7949,187.81,187.71,13.3179]
[1722265832981,5.325,187.79,187.71,13.3179]
[1722265833289,5.3254,187.78,187.67,13.3208]
[1722265833477,5.3257,187.77,187.67,13.3208]
[1722265833787,5.3263,187.75,187.67,13.3208]
[1722265833998,15.7949,187.81,187.67,13.3208]
[1722265834161,5.3262,187.75,187.67,13.3208]
[1722265834359,0.17,187.74,187.64,6.6089]
[1722265834561,5.3271,187.72,187.63,13.3235]
[1722265834788,0.17,187.71,187.63,13.3235]
[1722265835089,5.4973,187.71,187.63,18.653]
[1722265835383,45.0,187.7,187.63,18.653]
[1722265835584,45.0,187.7,187.63,13.3235]
[1722265835784,45.0,187.7,187.63,18.653]
[1722265835977,45.17,187.71,187.63,18.653]
[1722265836298,50.4974,187.71,187.63,13.3235]
[1722265836591,50.4974,187.71,187.63,18.653]
[1722265837082,5.3277,187.7,187.61,5.3299]
[1722265837288,70.328,187.69,187.6,5.3304]
[1722265837598,65.0,187.69,187.61,1.06593335]
[1722265837760,65.0,187.69,187.62,5.3299]
[1722265838087,65.0,187.69,187.63,5.3295]
[1722265838282,20.0,187.69,187.63,5.3295]
[1722265838460,25.3274,187.71,187.62,13.3246]
[1722265838661,45.0,187.7,187.58,13.3272]
[1722265838861,20.0,187.69,187.61,5.3301]
[1722265839085,20.0,187.69,187.62,5.3298]
[1722265839261,6.389,187.72,187.65,5.329]
[1722265839462,65.0,187.71,187.64,13.3231]
[1722265839692,65.0,187.71,187.64,18.6523]
[1722265839859,65.0,187.71,187.64,13.3231]
[1722265840061,65.0,187.71,187.63,5.3296]
[1722265840281,20.0,187.71,187.63,13.3238]
[1722265840489,15.8805,187.73,187.63,13.3238]
[1722265840662,15.8805,187.73,187.66,5.3286]
[1722265840880,15.8805,187.73,187.64,5.3291]
[1722265840881,21.2073,187.73,187.64,5.3291]
[1722265841100,21.2073,187.73,187.67,13.3212]
[1722265841101,15.8805,187.73,187.67,13.3212]
[1722265841408,15.8805,187.73,187.65,5.3289]
[1722265841577,21.2073,187.73,187.64,18.6526]
[1722265841783,50.3271,187.72,187.64,18.6526]
[1722265842086,45.0,187.72,187.67,5.3284]
[1722265842286,15.7513,187.77,187.7,5.3274]
[1722265842497,15.7513,187.77,187.65,32.9327]
[1722265842803,15.7513,187.77,187.71,5.3272]
[1722265843006,15.7513,187.77,187.72,5.3268]
[1722265843304,21.4027,187.81,187.73,6.3918136]
[1722265843504,5.3248,187.8,187.72,13.3174]
[1722265843675,5.3251,187.79,187.7,5.3276]
[1722265843998,5.3254,187.78,187.69,5.3276]
[1722265844524,5.3257,187.77,187.69,5.3276]
[1722265844799,5.3253,187.79,187.69,1.06539162]
[1722265845102,15.1849,187.81,187.77,5.3256]
[1722265845284,22.4827,187.86,187.78,1.06496864]
[1722265845482,22.4827,187.86,187.77,13.3138]
[1722265845483,5.3235,187.85,187.77,13.3138]
[1722265845685,22.4827,187.86,187.78,1.06496632]
[1722265845899,22.4827,187.86,187.77,13.3138]
[1722265846293,27.8059,187.86,187.77,13.3138]
[1722265846622,22.4827,187.86,187.69,1.06485831]
[1722265846795,5.3248,187.8,187.7,5.4974]
[1722265846988,5.3248,187.8,187.71,5.3273]
[1722265847605,5.3239,187.84,187.74,5.3264]
[1722265847806,20.0,187.83,187.77,5.3255]
[1722265848009,22.4827,187.86,187.75,13.3152]
[1722265848192,22.4827,187.86,187.79,5.3249]
[1722265848397,22.4827,187.86,187.78,13.3132]
[1722265848625,27.8058,187.86,187.78,13.3132]
[1722265849116,22.4827,187.86,187.75,5.3259]
[1722265849818,20.0,187.85,187.74,13.3159]
[1722265850115,5.3251,187.79,187.7,13.3187]
[1722265850415,5.3248,187.8,187.71,5.3273]
[1722265850620,45.0,187.79,187.71,5.3273]
[1722265850829,45.0,187.79,187.7,13.3187]
[1722265850993,16.2692,187.76,187.67,5.3284]
[1722265851198,16.2692,187.76,187.66,13.3216]
[1722265851199,45.0,187.75,187.66,13.3216]
[1722265851419,50.3262,187.75,187.66,13.3216]
[1722265851723,45.0,187.75,187.66,13.3216]
[1722265852316,50.3262,187.75,187.66,13.3216]
[1722265852529,5.3269,187.73,187.64,5.3291]
[1722265852845,16.2692,187.76,187.72,5.3268]
[1722265853002,16.2692,187.76,187.73,5.3267]
[1722265853198,16.2692,187.76,187.65,1.06557966]
[1722265853199,16.189,187.81,187.75,13.3152]
[1722265853825,16.189,187.81,187.73,5.3267]
[1722265854003,16.189,187.81,187.74,5.3264]
[1722265854520,16.189,187.81,187.73,5.3267]
[1722265854699,45.0,187.8,187.73,5.3267]
[1722265855420,45.0,187.8,187.7,19.508]
[1722265856121,45.0,187.8,187.73,13.3166]
[1722265856717,45.0,187.8,187.7,11.5167]
[1722265857022,5.4952,187.79,187.7,5.3275]
[1722265857229,45.0,187.8,187.72,13.3175]
[1722265857420,16.189,187.81,187.73,1.06515986]
[1722265857718,20.9234,187.86,187.77,5.3256]
[1722265858296,15.6002,187.86,187.78,13.3131]
[1722265858523,15.6002,187.86,187.76,5.3256]
[1722265858701,25.3234,187.85,187.76,5.3256]
[1722265859029,20.0,187.85,187.74,1.06490452]
[1722265859213,20.0,187.85,187.75,0.17]
[1722265859560,20.0,187.85,187.78,5.3253]
[1722265859700,20.0,187.85,187.77,13.314]
[1722265860223,20.0,187.85,187.77,18.6395]
[1722265860428,25.3234,187.85,187.77,13.314]
[1722265860835,20.0,187.85,187.77,13.314]
[1722265861026,25.3235,187.85,187.77,13.314]
[1722265861636,25.3235,187.85,187.77,18.6396]
[1722265862320,20.0,187.85,187.79,5.325]
[1722265862529,20.0,187.85,187.78,5.3253]
[1722265862719,15.6002,187.86,187.79,5.325]
[1722265863409,20.9233,187.86,187.77,18.6393]
[1722265863616,15.6002,187.86,187.77,13.314]
[1722265863816,15.6002,187.86,187.78,5.3253]
[1722265864223,20.9233,187.86,187.77,13.314]
[1722265864433,15.6002,187.86,187.77,13.314]
[1722265864638,45.0,187.85,187.73,13.3164]
[1722265864832,5.3242,187.83,187.74,5.3264]
[1722265865022,45.0,187.82,187.75,5.3261]
[1722265865741,45.0,187.82,187.74,5.3264]
[1722265865921,45.0,187.82,187.73,13.3164]
[1722265866125,5.3247,187.81,187.73,13.3164]
[1722265866435,5.3248,187.8,187.73,13.3164]
[1722265866636,45.0,187.83,187.73,13.3164]
[1722265866940,45.0,187.83,187.76,5.3258]
[1722265867118,45.0,187.83,187.73,13.3164]
[1722265867534,45.0,187.83,187.77,5.3254]
[1722265867741,20.0,187.84,187.78,5.3253]
[1722265867947,25.3234,187.85,187.76,5.3257]
[1722265868119,5.324,187.83,187.75,13.3149]
[1722265868322,50.3242,187.82,187.75,13.3149]
[1722265868644,50.3242,187.82,187.74,5.3264]
[1722265868826,50.3242,187.82,187.72,18.6443]
[1722265868827,5.3245,187.81,187.72,18.6443]
[1722265869034,5.3251,187.79,187.71,5.3273]
[1722265869620,45.0,187.82,187.76,5.3258]
[1722265869837,45.0,187.82,187.75,18.6415]
[1722265869838,20.0,187.81,187.75,18.6415]
[1722265870317,45.0,187.8,187.72,13.3176]
[1722265870542,45.17,187.8,187.72,13.3176]
[1722265870862,16.0,187.77,187.63,6.2229]
[1722265871060,16.0,187.77,187.53,246.6616]
[1722265871061,5.3271,187.72,187.65,13.3226]
[1722265871373,45.0,187.71,187.65,13.3226]
[1722265871542,45.0,187.71,187.65,18.6516]
[1722265871740,45.0,187.72,187.65,18.6516]
[1722265872353,27.6068,187.78,187.67,13.3206]
[1722265872548,65.34,187.77,187.67,13.3206]
[1722265872744,65.34,187.77,187.64,26.6459]
[1722265872745,5.3271,187.72,187.64,13.3233]
[1722265873052,50.3274,187.71,187.64,13.3233]
[1722265873248,50.3274,187.71,187.58,6.2229]
[1722265873249,36.0177,187.7,187.58,6.2229]
[1722265873447,45.34,187.69,187.58,5.331]
[1722265873656,5.3285,187.67,187.58,5.331]
[1722265873855,36.0177,187.7,187.57,1.06600474]
[1722265874042,36.0177,187.7,187.59,1.06600474]
[1722265874043,16.0177,187.7,187.59,1.06600474]
[1722265874241,16.0177,187.7,187.65,13.3219]
[1722265874765,16.0177,187.7,187.62,5.3296]
[1722265874940,16.0177,187.7,187.64,5.3292]
[1722265875139,16.0177,187.7,187.65,5.3289]
[1722265875362,16.0177,187.7,187.64,13.3233]
[1722265875752,16.0177,187.7,187.64,18.6525]
[1722265876339,16.0177,187.7,187.65,5.3289]
[1722265877256,16.0177,187.7,187.64,13.3233]
[1722265877468,16.0177,187.7,187.58,26.6551]
[1722265877850,16.0177,187.7,187.62,13.3242]
[1722265879558,16.0177,187.7,187.63,5.3293]
[1722265880461,21.3455,187.7,187.62,13.3242]
[1722265880639,16.0177,187.7,187.62,13.3242]
[1722265880842,16.0177,187.7,187.65,13.3225]
[1722265881262,16.0177,187.7,187.65,18.6515]
[1722265881842,16.0177,187.7,187.62,13.3247]
[1722265882452,16.0177,187.7,187.63,5.3294]
[1722265882653,16.0177,187.7,187.64,5.3293]
[1722265883268,16.0177,187.7,187.62,26.6484]
[1722265883576,15.6207,187.77,187.69,5.3279]
[1722265883750,20.9464,187.77,187.69,5.3278]
[1722265884154,20.9464,187.77,187.68,5.3281]
[1722265884360,15.6207,187.77,187.69,5.3279]
[1722265884542,15.6207,187.77,187.67,13.3211]
[1722265884745,5.3262,187.76,187.67,18.6495]
[1722265885146,45.0,187.75,187.67,18.6495]
[1722265885654,45.0,187.75,187.68,5.3281]
[1722265886246,45.0,187.75,187.69,5.3277]
[1722265886441,45.0,187.76,187.67,13.3211]
[1722265886644,5.327,187.72,187.64,5.3291]
[1722265886843,45.34,187.71,187.63,13.3237]
[1722265887051,20.599,187.7,187.63,13.3237]
[1722265887352,57.0643,187.69,187.6,5.3304]
[1722265887560,57.2343,187.69,187.6,5.3304]
[1722265888254,20.0,187.68,187.6,5.3304]
[1722265888460,45.0,187.67,187.6,5.3304]
[1722265888673,45.0,187.67,187.55,13.3291]
[1722265888852,5.3291,187.65,187.55,13.3291]
[1722265889048,15.0613,187.63,187.53,213.3309]
[1722265889350,45.0,187.62,187.55,5.3318]
[1722265889554,45.0,187.62,187.56,5.3315]
[1722265889741,15.0613,187.63,187.55,13.329]
[1722265889950,15.0613,187.63,187.58,5.331]
[1722265890157,15.0613,187.63,187.55,13.329]
[1722265890688,15.0613,187.63,187.59,5.3305]
[1722265890974,15.0613,187.63,187.58,13.3276]
[1722265891161,15.0613,187.63,187.62,5.3299]
[1722265891551,15.4643,187.68,187.61,13.3252]
[1722265891861,16.2087,187.73,187.62,1.06583946]
[1722265892052,16.2087,187.73,187.66,18.6497]
[1722265892256,16.2087,187.73,187.63,13.324]
[1722265892549,16.2087,187.73,187.66,5.3285]
[1722265892766,16.2087,187.73,187.65,5.329]
[1722265893275,16.2087,187.73,187.67,5.3283]
[1722265893575,16.2087,187.73,187.66,18.6504]
[1722265893778,16.2087,187.73,187.67,1.06557917]
[1722265893980,16.2087,187.73,187.69,5.3278]
[1722265894279,16.2087,187.73,187.7,5.3276]
[1722265894449,15.1495,187.78,187.71,6.39267957]
[1722265894656,15.1495,187.78,187.74,5.3262]
[1722265894851,15.1495,187.78,187.72,13.3174]
[1722265895165,15.1495,187.78,187.75,5.3262]
[1722265895761,15.1495,187.78,187.74,5.3264]
[1722265896360,15.1495,187.78,187.73,5.3266]
[1722265896681,16.5707,187.83,187.74,5.3264]
[1722265897060,16.5707,187.83,187.75,5.3261]
[1722265897373,21.8948,187.83,187.72,13.3174]
[1722265897780,16.5707,187.83,187.72,18.6442]
[1722265898195,16.5707,187.83,187.72,13.3174]
[1722265898358,5.3248,187.8,187.72,13.3174]
[1722265898559,16.5707,187.83,187.72,13.3174]
[1722265898755,81.34,187.82,187.72,13.3174]
[1722265898956,5.3255,187.78,187.69,5.3277]
[1722265899184,65.34,187.82,187.71,13.3181]
[1722265899479,5.3245,187.81,187.71,18.6451]
[1722265899682,65.34,187.82,187.72,5.327]
[1722265899683,70.3249,187.8,187.72,5.327]
[1722265899862,45.34,187.79,187.71,13.3181]
[1722265900066,45.34,187.79,187.71,18.6453]
[1722265900288,45.0,187.79,187.71,13.3181]
[1722265900466,20.0,187.8,187.74,5.3264]
[1722265900662,20.0,187.81,187.74,5.3264]
[1722265900859,20.0,187.82,187.75,5.3262]
[1722265901065,20.0,187.82,187.71,13.3181]
[1722265901362,20.0,187.82,187.74,13.316]
[1722265901577,45.0,187.81,187.74,13.316]
[1722265901883,45.0,187.81,187.75,5.326]
[1722265902069,20.0,187.82,187.74,18.6424]
[1722265902478,45.0,187.81,187.71,13.3184]
[1722265902869,5.3251,187.79,187.71,13.3184]
[1722265903069,50.3247,187.81,187.71,13.3184]
[1722265903263,20.0,187.8,187.74,5.3264]
[1722265903683,20.0,187.8,187.75,5.3262]
[1722265903987,20.0,187.82,187.75,5.3262]
[1722265904283,5.3248,187.8,187.71,5.3271]
[1722265904692,5.3251,187.79,187.71,5.3271]
[1722265904982,5.3254,187.78,187.7,13.3191]
[1722265905179,5.3251,187.79,187.7,18.6465]
[1722265905366,5.3251,187.79,187.71,5.3272]
[1722265905566,5.3254,187.78,187.7,18.6467]
[1722265905963,16.5707,187.83,187.73,13.3168]
[1722265906192,5.53129124,187.83,187.77,5.3256]
[1722265906393,5.53129124,187.83,187.8,5.3245]
[1722265906564,15.1398,187.86,187.79,18.6377]
[1722265906766,15.1398,187.86,187.79,13.3127]
[1722265906974,5.3237,187.84,187.76,5.3257]
[1722265907174,15.1398,187.86,187.75,13.3151]
[1722265907484,15.1398,187.86,187.72,13.3175]
[1722265907669,5.3245,187.82,187.73,5.3265]
[1722265907869,5.3245,187.82,187.74,5.3264]
[1722265908090,65.34,187.85,187.74,13.3157]
[1722265908572,5.3248,187.8,187.71,18.6453]
[1722265908771,65.34,187.85,187.71,18.6453]
[1722265908772,65.34,187.85,187.71,13.3183]
[1722265908973,13.3092,187.84,187.71,13.3183]
[1722265909193,45.34,187.83,187.71,13.3183]
[1722265909376,16.0,187.81,187.68,6.1024]
[1722265909582,15.1398,187.77,187.71,5.3273]
[1722265909774,15.1398,187.77,187.72,5.327]
[1722265910179,21.6351,187.82,187.75,5.326]
[1722265910382,33.6515,187.81,187.67,2.13133565]
[1722265910594,33.6515,187.81,187.69,5.3278]
[1722265910595,5.3256,187.78,187.69,5.3278]
[1722265910776,5.3259,187.77,187.68,5.3281]
[1722265910980,5.326,187.76,187.68,5.3281]
[1722265911194,49.6515,187.81,187.67,18.6489]
[1722265911383,5.3262,187.75,187.67,18.6489]
[1722265911788,5.3259,187.76,187.68,5.3281]
[1722265911985,5.3262,187.75,187.67,18.6489]
[1722265912676,5.3259,187.76,187.68,5.3282]
[1722265913089,49.6515,187.81,187.67,13.3205]
[1722265913293,5.3261,187.76,187.67,18.6487]
[1722265913506,5.3262,187.75,187.67,13.3205]
[1722265913797,5.3273,187.71,187.63,13.3239]
[1722265913999,21.7062,187.73,187.61,5.3299]
[1722265914220,81.34,187.72,187.58,6.0911]
[1722265914377,81.34,187.72,187.56,15.4061]
[1722265914378,5.3294,187.64,187.56,18.66]
[1722265914581,21.3747,187.64,187.56,13.3285]
[1722265914989,16.0453,187.64,187.53,206.2962]
[1722265915199,45.0,187.63,187.55,5.3318]
[1722265915502,50.3296,187.63,187.55,5.3318]
[1722265915705,50.3296,187.63,187.53,211.6284]
[1722265916012,50.3296,187.63,187.54,5.332]
[1722265916305,16.0453,187.64,187.55,13.3293]
[1722265916703,45.0,187.63,187.55,13.3293]
[1722265916882,21.3746,187.64,187.55,13.3293]
[1722265917074,16.0453,187.64,187.53,200.0]
[1722265917393,10.86217436,187.66,187.58,5.331]
[1722265917700,20.7465,187.69,187.55,1.06595556]
[1722265917905,20.7465,187.69,187.54,26.6602]
[1722265917906,5.3285,187.67,187.58,13.3274]
[1722265918201,15.4184,187.69,187.54,39.9902]
[1722265918508,5.3293,187.64,187.56,5.3316]
[1722265919006,31.4184,187.69,187.54,13.33]
[1722265919301,5.3299,187.62,187.54,13.33]
[1722265919709,65.0,187.68,187.54,13.33]
[1722265919893,5.3297,187.63,187.55,1.06624683]
[1722265920095,13.6613,187.67,187.53,200.0]
[1722265920292,5.3299,187.62,187.54,5.332]
[1722265921506,13.324,187.64,187.53,200.0]
[1722265921693,95.39,187.66,187.53,205.3323]
[1722265921694,5.3299,187.62,187.53,205.3323]
[1722265921890,20.0,187.63,187.54,1.06620311]
[1722265922084,45.0,187.66,187.55,1.0661031]
[1722265922298,5.3293,187.64,187.55,19.7275031]
[1722265922497,25.329,187.65,187.56,5.3315]
[1722265922889,20.0,187.65,187.58,5.3309]
[1722265923081,6.4217,187.68,187.53,200.0]